Cogmind - Beta 14 @@@ ROGUE MODE // 2024.11.09 @ 00:42:27 Player: Darsidian Result: Destroyed by G-50 Soldier with Heavy Laser Performance ------------- Evolutions (4) 2000 Regions Visited (12) 2400 Robots Destroyed (94) 470 Value Destroyed (6506) 6506 Prototype IDs (4) 80 Alien Tech Used (0) 0 Bonus (5593) 5593 TOTAL SCORE: 17049 Bonus ------- High Alert Combat Kills 841 Follower Combat Kills 2350 Entered Garrisons 800 Used RIF Installer 2000 Friendly Fire -398 Cogmind --------- Core Integrity 0/850 Matter 108/300 Energy 94/650 System Corruption 7% Temperature Cool (9) Movement Rolling (195) Ox7 Location -6/Garrison Parts ------- > --- POWER (1) -------- Micro Antimatter Reactor > --- PROPULSION (4) --- Armored Wheel > --- UTILITY (8) ------ Improved Cooling System Huge Storage Unit Advanced Energy Well Relay Coupler [Swarmer] (42) Relay Coupler [Brawler] (36) Relay Coupler [Specialist] (22) > --- WEAPON (2) ------- (None) > --- INVENTORY (25) --- Centrium Wheel Advanced Power Amplifier Advanced Visual Processing Unit Advanced Sensor Array Remote Shield Relay Coupler [NC] (43) Relay Coupler [Sentry] (18) Relay Coupler [Heavy] (15) Corruption Screen Advanced Recalibrator Drone Bay (0/2) Remote Datajack Spear Peak State ------------ > --- POWER ------------ Particle Reactor > --- PROPULSION ------- Armored Wheel Armored Wheel Armored Wheel Armored Wheel > --- UTILITY ---------- Huge Storage Unit Advanced Energy Well Improved Remote Force Field Improved System Shield Relay Coupler [Swarmer] Relay Coupler [Demolisher] Relay Coupler [Specialist] Relay Coupler [Hunter] > --- WEAPON ----------- Quantum Rifle Hypervelocity Railgun > --- INVENTORY -------- Particle Reactor Micro Antimatter Reactor Armored Wheel Centrium Wheel Advanced Power Amplifier Improved Cooling System Advanced Visual Processing Unit Advanced Sensor Array Medium Reflective Plating Advanced Force Field Remote Shield Relay Coupler [NC] Relay Coupler [Brawler] Relay Coupler [Sentry] Relay Coupler [Heavy] Corruption Screen Advanced Recalibrator Drone Bay Fusion Bomb Launcher Remote Datajack Remote Datajack Spear [Rating: 83] Favorites ----------- Power Particle Reactor Engine Improved Ion Engine Power Core Light Nuclear Core Reactor Particle Reactor Propulsion Armored Wheel Treads Light Treads Leg Aluminum Leg Wheel Armored Wheel Hover Unit Backup Propulsion III Utility Huge Storage Unit Device Improved Heat Sink Storage Huge Storage Unit Processor Advanced Signal Interpreter Hackware Relay Coupler [Swarmer] Protection Improved Light Armor Plating Weapon Remote Datajack Energy Gun Precision Beam Rifle Energy Cannon Particle Cannon Ballistic Gun KE Penetrator Ballistic Cannon Flak Cannon Launcher Rocket Launcher Special Weapon Remote Datajack Slashing Weapon Katana Piercing Weapon Spear Special Melee Weapon Datajack Build | -11 -10 -9 -8 -8 -7 -7 -6 -6 -6 -6 -6 -6 ------- Run | Yrd Mat Mat Mat Gar Fac Gar Fac Was Fac Gar Fac Gar Slots Evolved 8 | . . 2 2 . 2 . 2 . . . . . Power . | . . . . . . . . . . . . . Propulsion 2 | . . . 1 . . . 1 . . . . . Utility 6 | . . 2 1 . 2 . 1 . . . . . Weapon . | . . . . . . . . . . . . . Parts Attached 298 | 7 11 11 3 52 8 72 40 4 5 38 14 33 Power 18 | 1 3 1 . 3 . 6 . . . . . 4 Engine 12 | 1 3 1 . 3 . 4 . . . . . . Core 1 | . . . . . . 1 . . . . . . Reactor 5 | . . . . . . 1 . . . . . 4 Propulsion 38 | 2 . 1 1 12 1 11 2 . . 4 1 3 Treads 8 | . . . . 5 1 2 . . . . . . Leg 3 | . . . . 3 . . . . . . . . Wheel 27 | 2 . 1 1 4 . 9 2 . . 4 1 3 Hover . | . . . . . . . . . . . . . Flight . | . . . . . . . . . . . . . Utility 87 | 2 6 2 1 10 4 14 12 4 3 13 5 11 Device 36 | 1 4 1 . 5 1 3 7 2 . 5 1 6 Storage 6 | 1 2 . 1 . . . . 1 . . . 1 Processor 4 | . . . . . . . . . 1 3 . . Hackware 34 | . . 1 . 4 2 10 4 1 2 5 3 2 Protection 7 | . . . . 1 1 1 1 . . . 1 2 Artifact . | . . . . . . . . . . . . . Weapon 155 | 2 2 7 1 27 3 41 26 . 2 21 8 15 Energy Gun 62 | 2 1 2 1 6 2 19 6 . 1 10 5 7 Energy Cannon 7 | . . 3 . 3 . . 1 . . . . . Ballistic Gun 26 | . 1 . . 4 . 7 6 . . 5 . 3 Ballistic Cannon 4 | . . . . 2 . 2 . . . . . . Launcher 5 | . . . . 2 . . . . . . . 3 Special Weapon 29 | . . . . 2 1 7 9 . 1 5 2 2 Impact Weapon . | . . . . . . . . . . . . . Slashing Weapon 8 | . . 1 . 6 . 1 . . . . . . Piercing Weapon 11 | . . . . . . 5 4 . . 1 1 . Special Melee Weapon 3 | . . 1 . 2 . . . . . . . . Unidentified Prototypes 4 | . . 1 . . . 1 1 1 . . . . Corrupted Parts 1 | . . . . 1 . . . . . . . . System Corruption 3 | . . . . 3 . . . . . . . . Parts Lost 55 | . 1 1 . 13 . 11 4 . . 1 . 24 Power 4 | . . . . 1 . 1 . . . . . 2 Propulsion 20 | . . 1 . 7 . 3 1 . . 1 . 7 Utility 19 | . 1 . . 4 . 3 3 . . . . 8 Weapon 12 | . . . . 1 . 4 . . . . . 7 Highest Loss Streak 14 | . 1 1 . 4 . 4 3 . . 1 . 14 To Critical Strikes 1 | . . . . . . . . . . . . 1 Average Slot Usage (%) 93 | . 99 99 92 92 97 86 93 97 100 98 97 80 Engine 5 | . 14 11 9 8 7 5 . . . . . . Reactor 2 | . . . . . . 1 6 6 6 6 6 5 Treads 4 | . . . . 8 23 8 . . . . . . Leg 1 | . . . . 6 . . . . . . . . Wheel 18 | . 28 22 27 10 . 13 25 26 26 25 25 17 Device 13 | . 13 22 18 13 20 9 19 23 18 9 2 4 Storage 9 | . 14 11 10 16 7 7 6 6 6 6 6 10 Hackware 14 | . . 11 9 6 15 19 13 13 20 21 36 26 Protection 4 | . . . . 3 7 5 6 6 6 6 3 1 Energy Gun 7 | . 21 13 18 3 5 6 4 6 10 7 6 6 Energy Cannon 2 | . . 7 . 6 3 . . . . . . . Ballistic Gun 2 | . 6 . . 1 . 3 3 . . 1 . 3 Special Weapon 1 | . . . . . 5 1 2 6 2 2 3 . Peak Build Rating 83 | 9 10 23 25 30 39 54 61 63 63 67 63 83 Average Rating 39 | 6 8 19 24 25 34 39 56 56 60 62 59 63 On Entrance 37 | . 9 8 22 25 29 39 45 56 60 63 63 63 Naked Turns . | . . . . . . . . . . . . . Heaviest Build 142 | 14 50 57 133 142 103 125 131 118 119 114 120 135 Greatest Support 60 | 26 26 26 42 60 60 60 48 48 48 48 48 48 Greatest Overweight (x) 44 | . 1 2 3 44 1 7 3 2 2 3 3 10 Average Overweight (x) 2 | . . 1 1 2 1 2 2 2 2 2 2 3 Largest Inventory Capacity 25 | 8 20 20 25 25 25 25 25 25 25 25 25 25 Average Capacity 24 | 7 18 20 21 25 25 25 25 25 25 25 25 25 Most Carried 25 | 4 14 16 16 25 25 25 25 24 24 25 25 24 Average Carried 21 | 1 10 12 15 22 23 21 22 22 23 24 24 20 Final Capacity 25 | 8 20 20 25 25 25 25 25 25 25 25 25 25 Final Carried 25 | 4 13 16 16 24 25 25 20 23 23 25 23 13 Class Distribution -------------------- 71% | Bothacker-Mutant 12% | Botlord-Mutant 10% | Mutant 5% | Scavenger-Mutant Dominant Class ---------------- Mutant | -10/Materials Scavenger-Mutant | -9/Materials Scavenger-Mutant | -8/Materials Bothacker-Mutant | -8/Garrison Bothacker-Mutant | -7/Factory Bothacker-Mutant | -7/Garrison Bothacker-Mutant | -6/Factory Bothacker-Mutant | -6/Waste Bothacker-Mutant | -6/Factory Botlord-Mutant | -6/Garrison Botlord-Mutant | -6/Factory Botlord-Mutant | -6/Garrison Resources | -11 -10 -9 -8 -8 -7 -7 -6 -6 -6 -6 -6 -6 ----------- Run | Yrd Mat Mat Mat Gar Fac Gar Fac Was Fac Gar Fac Gar Matter Collected 4895 | 270 134 109 30 664 123 1389 656 70 45 665 316 424 Remotely . | . . . . . . . . . . . . . Salvage Created 5507 | 104 423 615 . 911 52 1534 433 . . 760 42 633 Parts 198 | 7 34 30 . 41 1 40 5 . . 14 7 19 Haulers Intercepted 2 | . 1 1 . . . . . . . . . . Recyclers Shooed 3 | 1 1 . . . . . 1 . . . . . Parts Field Recycled . | . . . . . . . . . . . . . Retrieved Matter . | . . . . . . . . . . . . . Parts Self-Destructed . | . . . . . . . . . . . . . Prevented . | . . . . . . . . . . . . . Kills | -11 -10 -9 -8 -8 -7 -7 -6 -6 -6 -6 -6 -6 ------- Run | Yrd Mat Mat Mat Gar Fac Gar Fac Was Fac Gar Fac Gar Combat Hostiles Destroyed 77 | . 9 10 . 21 . 10 8 . . 4 . 15 Melee 1 | . . . . 1 . . . . . . . . Guns 47 | . 9 4 . 8 . 7 8 . . 4 . 7 Cannons 14 | . . 6 . 5 . 3 . . . . . . AOE 14 | . . . . 7 . . . . . . . 7 Classes Destroyed 17 | 2 6 2 . 2 . 2 2 . . . . 1 Worker 2 | . 1 . . . . . . . . . 1 . Builder 3 | . . . . . . . 2 . . . 1 . Tunneler 2 | 1 1 . . . . . . . . . . . Hauler 2 | . 1 1 . . . . . . . . . . Recycler 6 | 1 . 3 . . 1 . 1 . . . . . Operator 1 | . 1 . . . . . . . . . . . Watcher 4 | . 3 1 . . . . . . . . . . Swarmer 11 | . 5 3 . 1 . 1 . . . . . 1 Cutter 5 | . . . . 5 . . . . . . . . Grunt 40 | . 4 4 . 12 . 4 3 . . 2 . 11 Duelist 1 | . . 1 . . . . . . . . . . Sentry 5 | . . 2 . 2 . . . . . . . 1 Specialist 2 | . . . . . . 1 . . . 1 . . Programmer 7 | . . . . 2 . 3 . . . 1 . 1 Behemoth 2 | . . . . . . 1 . . . . . 1 Assembled 5 | . . . . . . . 5 . . . . . Surgeon 1 | . . . . . . . . . . . . 1 Best Kill Streak 9 | 2 6 7 . 4 1 3 5 . . 1 1 9 Combat Bots Only 9 | . 3 4 . 4 . 3 5 . . 1 . 9 Max Kills in Single Turn 2 | 1 1 2 . 2 1 1 1 . . 1 1 2 Gunslinging 1 | . . 1 . 1 . . . . . . . 1 Exploded 2 | . . . . 2 . . . . . . . 2 Melee 1 | . . . . 1 . . . . . . . . Uniques/NPCs Destroyed . | . . . . . . . . . . . . . Combat | -11 -10 -9 -8 -8 -7 -7 -6 -6 -6 -6 -6 -6 -------- Run | Yrd Mat Mat Mat Gar Fac Gar Fac Was Fac Gar Fac Gar Hostile Shots Fired 763 | . 47 32 . 121 2 181 52 . 1 29 32 266 Missed 231 | . 10 13 . 38 . 57 14 . . 8 7 84 Damage Taken 8347 | . 346 239 . 1523 22 1704 658 . 18 628 533 2676 Core 1474 | . 81 15 . 291 . 237 56 . . 147 92 555 Absorbed by Shields 924 | . . . . . . 302 157 . . . . 465 Ignored by Resistances 57 | . . . . . . . . . . . . 57 Regen/Repaired (Parts) 686 | . 50 . . . . . . 96 1 251 98 190 Core Remaining (%) 75 | 100 67 96 . 47 . 66 . . . . . . Volleys Fired 564 | 3 35 21 . 70 8 134 96 . 16 88 32 61 Largest 2 | 2 2 2 . 2 2 2 2 . 2 2 2 2 Hottest 162 | 90 90 136 . 136 141 162 160 . 160 160 146 146 Shots Fired 884 | 6 68 42 . 127 11 204 133 . 17 145 37 94 Gun 628 | 6 68 18 . 65 9 145 94 . 2 131 11 79 Cannon 93 | . . 24 . 51 . 11 7 . . . . . Launcher 16 | . . . . 6 . . . . . . . 10 Special 147 | . . . . 5 2 48 32 . 15 14 26 5 Kinetic 185 | . 2 . . 25 . 68 39 . . 28 . 23 Thermal 521 | 6 66 42 . 91 9 77 62 . 2 99 11 56 Explosive 16 | . . . . 6 . . . . . . . 10 Electromagnetic 15 | . . . . . . 11 . . . 4 . . Robot Hit Streak 31 | 5 9 9 . 31 5 31 6 . 4 15 6 6 Robot Miss Streak 5 | . 4 3 . 3 5 5 4 . 2 2 4 4 Penetration Max 1 | . . . . . . . 1 . . . . . Secondary Targets 6 | . 2 1 . 1 . . . . . 1 . 1 Max Gunslinging Chain 1 | . 1 1 . 1 . . . . . 1 . 1 Shots Hit Robots 625 | 5 41 33 . 87 9 201 73 . 10 90 22 54 Core Hits 268 | 3 24 16 . 41 5 93 20 . . 28 2 36 Critical Kills 5 | . . 1 . . . . 1 . . . . 3 Critical Parts Destroyed 7 | . . . . 2 . 1 1 . . 1 . 2 Critical Strikes 39 | . 2 1 . 5 . 9 7 . . 8 1 6 Burn 22 | . 2 . . 3 . 3 5 . . 7 1 1 Meltdown 2 | . . 1 . . . . 1 . . . . . Destroy 10 | . . . . 2 . 1 1 . . 1 . 5 Impale 5 | . . . . . . 5 . . . . . . Melee Attacks 118 | . . 3 . 23 . 54 28 . . 5 5 . Impact . | . . . . . . . . . . . . . Slashing 21 | . . 2 . 17 . 2 . . . . . . Piercing 90 | . . . . . . 52 28 . . 5 5 . Sneak Attacks 6 | . . 1 . 3 . . 1 . . . 1 . Combat Hostiles . | . . . . . . . . . . . . . Follow-up Attacks . | . . . . . . . . . . . . . Damage Inflicted 12962 | 59 479 640 . 1916 131 4298 1194 . 22 1727 189 2307 Guns 7529 | 59 479 292 . 733 131 2151 1032 . 22 1727 85 818 Cannons 1189 | . . 348 . 561 . 189 91 . . . . . Explosions 1956 | . . . . 467 . . . . . . . 1489 Melee 2288 | . . . . 155 . 1958 71 . . . 104 . Ramming . | . . . . . . . . . . . . . Kinetic 1779 | . 12 . . 241 . 654 376 . . 287 . 209 Thermal 6741 | 59 467 640 . 1053 131 1585 747 . 22 1343 85 609 Explosive 1956 | . . . . 467 . . . . . . . 1489 Electromagnetic 198 | . . . . . . 101 . . . 97 . . Impact . | . . . . . . . . . . . . . Slashing 155 | . . . . 155 . . . . . . . . Piercing 2133 | . . . . . . 1958 71 . . . 104 . Highest Corruption 8 | . . . . 8 . 4 6 . 2 5 5 7 Average Corruption 5 | . . . . 6 . 3 5 . 2 4 5 6 Corruption Purged 6 | . . . . . . . 6 . . . . . Corruption Blocked . | . . . . . . . . . . . . . Effects 170 | . . . . 42 . 56 1 . . 39 14 18 Message Errors 35 | . . . . 7 . 14 1 . . 8 2 3 Matter Fused 46 | . . . . 15 . 17 . . . 7 2 5 Heat Flow Errors 21 | . . . . 5 . 4 . . . 6 4 2 Energy Discharges 14 | . . . . 3 . 6 . . . 1 3 1 Parts Rejected 3 | . . . . . . 1 . . . . 1 1 Data Loss (minor) 21 | . . . . 5 . 4 . . . 10 1 1 Data Loss (major) 11 | . . . . 4 . 6 . . . 1 . . Misfires 8 | . . . . 2 . 3 . . . 3 . . Alerts 1 | . . . . 1 . . . . . . . . Weapon Failures 10 | . . . . . . 1 . . . 3 1 5 Overload Shots . | . . . . . . . . . . . . . Overflow Damage 172 | . . . . 28 . 111 1 . . . . 32 Projectiles 19 | . . . . 19 . . . . . . . . Explosions 41 | . . . . 9 . . . . . . . 32 Melee 112 | . . . . . . 111 1 . . . . . Knockbacks 10 | . . . . . . 10 . . . . . . Impact . | . . . . . . . . . . . . . Kinetic 9 | . . . . . . 9 . . . . . . Secondary 1 | . . . . . . 1 . . . . . . Self-Inflicted Damage 227 | . . . . 131 . . . . . . . 96 Shots 5 | . . . . 3 . . . . . . . 2 Rammed . | . . . . . . . . . . . . . Targets Rammed . | . . . . . . . . . . . . . Kicked . | . . . . . . . . . . . . . Crushed . | . . . . . . . . . . . . . Highest Temperature 495 | 90 264 264 . 271 . 224 30 . . 245 381 495 Average Temperature 112 | 46 99 104 . 76 . 52 12 . . 93 153 179 Received Heat Transfer 2761 | . 108 72 . 612 . 501 194 . 9 99 96 1070 Effects 22 | . 4 3 . 2 . . . . . 1 . 12 Shutdowns 3 | . . . . . . . . . . . . 3 Energy Bleed 5 | . 1 . . . . . . . . 1 . 3 Interference 9 | . 3 3 . 2 . . . . . . . 1 Matter Decay 1 | . . . . . . . . . . . . 1 Damage (minor) 2 | . . . . . . . . . . . . 2 Damage (major) 2 | . . . . . . . . . . . . 2 Siege Activations . | . . . . . . . . . . . . . Robots Corrupted . | . . . . . . . . . . . . . Combat Hostiles . | . . . . . . . . . . . . . Parts Fried . | . . . . . . . . . . . . . Impact Corruptions . | . . . . . . . . . . . . . Robots Melted 8 | . . 1 . . . 1 1 . . 4 . 1 Combat Hostiles 1 | . . . . . . . . . . . . 1 Parts Melted 28 | . 1 5 . 2 . 4 7 . . 4 1 4 Heat Transferred 16684 | 161 1423 1258 . 2195 299 3619 2311 . 50 3905 274 1189 Parts Sabotaged . | . . . . . . . . . . . . . Parts Stolen . | . . . . . . . . . . . . . Parts Stripped . | . . . . . . . . . . . . . Power Chain Reactions . | . . . . . . . . . . . . . Alert | -11 -10 -9 -8 -8 -7 -7 -6 -6 -6 -6 -6 -6 ------- Run | Yrd Mat Mat Mat Gar Fac Gar Fac Was Fac Gar Fac Gar Peak Influence 2004 | 10 202 278 33 1605 869 1402 788 232 285 2004 1381 1122 Initial 1052 | . 6 . 33 21 842 494 735 232 162 199 1052 826 Average 679 | 5 71 121 33 664 816 745 590 232 156 1335 1013 938 Maximum Alert Level 5 | . 1 1 . 5 3 4 3 1 1 5 4 4 Low Security (%) 18 | 100 85 89 100 13 . . . . 87 . . . Level 1 10 | . 14 10 . 25 . . . 100 12 5 . . Level 2 32 | . . . . 22 14 64 76 . . 14 . . Level 3 21 | . . . . 15 85 21 23 . . 7 62 89 Level 4 13 | . . . . 20 . 14 . . . 30 37 10 Level 5 5 | . . . . 2 . . . . . 41 . . High Security . | . . . . . . . . . . . . . Max Security . | . . . . . . . . . . . . . Squads Dispatched 13 | . 1 . . . 1 . 5 . 2 . 4 . Investigation . | . . . . . . . . . . . . . Extermination 4 | . . . . . . . 2 . 1 . 1 . Reinforcement 5 | . 1 . . . . . 3 . . . 1 . Assault 1 | . . . . . . . . . . . 1 . Garrison 3 | . . . . . 1 . . . 1 . 1 . Intercept . | . . . . . . . . . . . . . Searches Triggered . | . . . . . . . . . . . . . Construction Impeded 2 | . . . . . . . 2 . . . . . Haulers Reinforced . | . . . . . . . . . . . . . Active Scanning Responses . | . . . . . . . . . . . . . Cargo Convoy Interrupts 1 | . . . . . . . 1 . . . . . Stealth | -11 -10 -9 -8 -8 -7 -7 -6 -6 -6 -6 -6 -6 --------- Run | Yrd Mat Mat Mat Gar Fac Gar Fac Was Fac Gar Fac Gar Distress Signals 3 | . 1 1 . . . . . . 1 . . . Communications Jammed 6 | . . . . . . . . . . . 6 . Distress Signals 5 | . . . . . . . . . . . 5 . Times Spotted 218 | . 15 13 . 29 2 45 36 . 5 29 19 25 Peak Tracking Total 8 | . 6 6 . 5 1 7 4 . 2 5 7 8 Tactical Retreats 8 | . . . . . . 5 1 . . . 1 1 Traps | -11 -10 -9 -8 -8 -7 -7 -6 -6 -6 -6 -6 -6 ------- Run | Yrd Mat Mat Mat Gar Fac Gar Fac Was Fac Gar Fac Gar Traps Triggered 22 | . . . . 3 . 11 2 . 2 4 . . Indirectly . | . . . . . . . . . . . . . Trap Hack Attempts . | . . . . . . . . . . . . . Triggered . | . . . . . . . . . . . . . Disarmed . | . . . . . . . . . . . . . Reprogrammed . | . . . . . . . . . . . . . Reused . | . . . . . . . . . . . . . Traps Extracted . | . . . . . . . . . . . . . Installed . | . . . . . . . . . . . . . Triggered 3 | . . . . . . . 3 . . . . . Machines | -11 -10 -9 -8 -8 -7 -7 -6 -6 -6 -6 -6 -6 ---------- Run | Yrd Mat Mat Mat Gar Fac Gar Fac Was Fac Gar Fac Gar Machines Disabled 34 | . . . . 7 . 4 2 . 2 12 4 3 Max in Single Turn 2 | . . . . 1 . 1 1 . . 1 1 2 Garrison Relay 16 | . . . . 7 . 3 . . . 6 . . Machines Repaired . | . . . . . . . . . . . . . Machines Dismantled . | . . . . . . . . . . . . . Machines Sabotaged . | . . . . . . . . . . . . . Overloaded Fab Kills . | . . . . . . . . . . . . . Hacking | -11 -10 -9 -8 -8 -7 -7 -6 -6 -6 -6 -6 -6 --------- Run | Yrd Mat Mat Mat Gar Fac Gar Fac Was Fac Gar Fac Gar Machines Accessed 32 | . 10 4 1 3 2 3 3 . 2 2 2 . Terminals 21 | . 7 3 . 3 . 3 1 . 1 2 1 . Fabricators 1 | . . . . . . . 1 . . . . . Repair Stations 2 | . 1 . . . 1 . . . . . . . Recycling Units 4 | . 2 1 . . . . 1 . . . . . Scanalyzers . | . . . . . . . . . . . . . Garrison Access 4 | . . . 1 . 1 . . . 1 . 1 . Total Hacks 58 | . 22 6 1 5 4 6 6 . 4 2 2 . Successful 32 | . 16 5 1 . 3 1 2 . 3 . 1 . Failed 26 | . 6 1 . 5 1 5 4 . 1 2 1 . Catastrophic 8 | . . . . 1 1 1 1 . 1 2 1 . Database Lockouts . | . . . . . . . . . . . . . Manual 36 | . 14 5 . 5 . 3 4 . 2 2 1 . Terminals 42 | . 17 5 . 5 . 6 4 . 2 2 1 . Fabricators 1 | . . . . . . . 1 . . . . . Repair Stations 4 | . 2 . . . 2 . . . . . . . Recycling Units 5 | . 3 1 . . . . 1 . . . . . Scanalyzers . | . . . . . . . . . . . . . Garrison Access 6 | . . . 1 . 2 . . . 2 . 1 . Terminal Hacks 4 | . 3 . . . . 1 . . . . . . Record 1 | . 1 . . . . . . . . . . . Level Access Points 1 | . 1 . . . . . . . . . . . Hauler Manifests 1 | . 1 . . . . . . . . . . . Garrison Registry 1 | . . . . . . 1 . . . . . . Fabricator Hacks . | . . . . . . . . . . . . . Repair Station Hacks 3 | . 2 . . . 1 . . . . . . . Scan Component 2 | . 1 . . . 1 . . . . . . . Repair 1 | . 1 . . . . . . . . . . . Recycling Unit Hacks 4 | . 2 1 . . . . 1 . . . . . Report Inventory 4 | . 2 1 . . . . 1 . . . . . Scanalyzer . | . . . . . . . . . . . . . Garrison Access Hacks 6 | . . . 1 . 2 . . . 2 . 1 . Unlock Access 4 | . . . 1 . 1 . . . 1 . 1 . Coupler Status 2 | . . . . . 1 . . . 1 . . . Unauthorized Hacks 15 | . 9 4 . . . . 1 . 1 . . . Terminals 15 | . 9 4 . . . . 1 . 1 . . . Track 1 | . . 1 . . . . . . . . . . Assimilate 3 | . 3 . . . . . . . . . . . Botnet 10 | . 6 2 . . . . 1 . 1 . . . Operators 1 | . . 1 . . . . . . . . . . Fabricators . | . . . . . . . . . . . . . Repair Stations . | . . . . . . . . . . . . . Recycling Units . | . . . . . . . . . . . . . Scanalyzers . | . . . . . . . . . . . . . Garrison Access . | . . . . . . . . . . . . . Data Cores Recovered . | . . . . . . . . . . . . . Used . | . . . . . . . . . . . . . Hacking Detections 24 | . 6 3 . 3 2 3 3 . 1 2 1 . Full Trace Events 2 | . 2 . . . . . . . . . . . Feedback Events . | . . . . . . . . . . . . . Feedback Blocked . | . . . . . . . . . . . . . Robot Schematics Acquired . | . . . . . . . . . . . . . Robots Built . | . . . . . . . . . . . . . Authchips . | . . . . . . . . . . . . . Time . | . . . . . . . . . . . . . Total Robot Build Rating . | . . . . . . . . . . . . . Part Schematics Acquired . | . . . . . . . . . . . . . Parts Built . | . . . . . . . . . . . . . Authchips . | . . . . . . . . . . . . . Time . | . . . . . . . . . . . . . Total Part Build Rating . | . . . . . . . . . . . . . Parts Repaired 1 | . 1 . . . . . . . . . . . Time 26 | . 26 . . . . . . . . . . . Parts Recycled . | . . . . . . . . . . . . . Recycled Matter . | . . . . . . . . . . . . . Retrieved Matter . | . . . . . . . . . . . . . Retrieved Components . | . . . . . . . . . . . . . Parts Scanalyzed . | . . . . . . . . . . . . . Part Schematics Acquired . | . . . . . . . . . . . . . Parts Damaged . | . . . . . . . . . . . . . Bothacking | -11 -10 -9 -8 -8 -7 -7 -6 -6 -6 -6 -6 -6 ------------ Run | Yrd Mat Mat Mat Gar Fac Gar Fac Was Fac Gar Fac Gar Used RIF Installer 4 | . . . . 2 . 1 . . . 1 . . Signal Jammer 1 | . . . . . . . . . . 1 . . Watcher Feeds 1 | . . . . . . 1 . . . . . . Program Shield 1 | . . . . 1 . . . . . . . . Robots Hacked 69 | . . 1 . 6 1 24 16 . 5 7 7 2 Non-combat 16 | . . 1 . . . . 10 . 2 . 3 . Combat 53 | . . . . 6 1 24 6 . 3 7 4 2 Robot Hacks Applied 82 | . . 1 . 6 1 26 20 . 7 7 12 2 no_distress 10 | . . 1 . . . . 5 . 2 . 2 . find_chute 1 | . . . . . . . 1 . . . . . ignore_repairs 4 | . . . . . . . 4 . . . . . map_walls 3 | . . . . . . . 3 . . . . . find_recycling 2 | . . . . . . . . . 1 . 1 . ignore_parts 2 | . . . . . . . . . 1 . 1 . purge_threat 3 | . . . . . . . . . . . 3 . find_shortcuts 2 | . . . . . . 1 . . . 1 . . find_garrison 1 | . . . . . . . . . . . 1 . amplify_resonance 5 | . . . . 1 . 2 1 . . . . 1 reboot_system 4 | . . . . 1 . 1 1 . . 1 . . go_dormant 1 | . . . . . . 1 . . . . . . overwrite_iff 12 | . . . . 1 . 9 . . . . 1 1 formatsys_low 1 | . . . . . . . . . . . 1 . formatsys_high 31 | . . . . 3 1 12 5 . 3 5 2 . Relay Couplers Released 64 | . . . . 28 . 11 . . . 25 . . Machine Destruction 64 | . . . . 28 . 11 . . . 25 . . Attached 32 | . . . . 4 2 10 4 . 2 5 3 2 Fabnet Peak Effective % . | . . . . . . . . . . . . . Robots Rewired . | . . . . . . . . . . . . . Allies Hacked 2 | . . . . 1 . . . . . 1 . . Hacks Repelled . | . . . . . . . . . . . . . Allies | -11 -10 -9 -8 -8 -7 -7 -6 -6 -6 -6 -6 -6 -------- Run | Yrd Mat Mat Mat Gar Fac Gar Fac Was Fac Gar Fac Gar Total Allies 64 | . 1 . . 4 1 20 5 20 3 5 4 1 Largest Group 21 | . 1 1 1 3 1 3 5 21 21 17 13 10 Highest-Rated Group 760 | . 10 10 10 42 21 78 169 760 760 662 429 327 Highest-Rated Ally 50 | . 10 10 10 16 21 32 41 50 50 50 47 46 Total Orders 24 | . 2 4 . 6 . . 4 3 4 1 . . STAY 8 | . 1 2 . 3 . . 2 . . . . . FOLLOW 8 | . 1 2 . 3 . . 2 . . . . . EXPLORE 5 | . . . . . . . . 1 3 1 . . RETURN 3 | . . . . . . . . 2 1 . . . Ally Attacks 466 | . . . . 17 6 70 53 . 40 175 79 26 Total Damage 13264 | . . . . 269 152 1704 1861 . 1061 4859 2468 890 Kills 88 | . . . . 2 1 9 19 . 5 31 18 3 Allies Corrupted 1 | . . . . . . . . . . 1 . . Allies Melted 3 | . . . . 1 . 1 . . . 1 . . Intel | -11 -10 -9 -8 -8 -7 -7 -6 -6 -6 -6 -6 -6 ------- Run | Yrd Mat Mat Mat Gar Fac Gar Fac Was Fac Gar Fac Gar Robot Analysis Total . | . . . . . . . . . . . . . Derelict Logs Recovered . | . . . . . . . . . . . . . Drone Launches 5 | . . . . . . . . 2 2 1 . . Drone Recoveries 3 | . . . . . . . . 2 1 . . . Exploration | -11 -10 -9 -8 -8 -7 -7 -6 -6 -6 -6 -6 -6 ------------- Run | Yrd Mat Mat Mat Gar Fac Gar Fac Was Fac Gar Fac Gar Turns Passed 12445 | 65 1081 510 52 2925 525 2622 1738 168 377 1514 418 450 Spaces Moved 6137 | 46 811 288 41 1092 201 1205 780 102 267 889 255 160 Core 6 | 2 . . . 4 . . . . . . . . Treads 770 | . . . . 317 201 252 . . . . . . Legs 138 | . . . . 138 . . . . . . . . Wheels 5221 | 44 811 288 41 633 . 953 780 102 267 889 255 158 Hover 2 | . . . . . . . . . . . . 2 Flight . | . . . . . . . . . . . . . Fastest Speed 50 | 50 90 105 108 130 240 120 120 120 120 120 120 120 Average Speed 149 | 88 104 119 113 229 240 157 120 120 120 120 120 143 Slowest Speed 2250 | 100 105 120 138 2250 240 240 135 120 120 135 135 880 Overloaded Moves . | . . . . . . . . . . . . . Propulsion Burnouts . | . . . . . . . . . . . . . Robots Hopped . | . . . . . . . . . . . . . Cave-ins Triggered . | . . . . . . . . . . . . . Exploration Rate (%) 40 | 4 90 23 6 84 5 84 26 72 11 79 9 29 Regions Visited 12 Branch Regions . Pre-discovered Areas . | . . . . . . . . . . . . . Known Exits Taken 5 | . 1 . 1 . 1 . . . 1 . 1 . Unknown Exits Taken 2 | 1 . 1 . . . . . . . . . . Scrap Searched . | . . . . . . . . . . . . . Spaces Dug 19 | . . 2 . . . 1 16 . . . . . Terrain Destroyed 148 | . . 2 . 51 . 1 21 . . 2 . 71 Melee 15 | . . 2 . . . . 13 . . . . . Projectile 10 | . . . . . . 1 7 . . 2 . . AOE 122 | . . . . 51 . . . . . . . 71 Terrain Rammed . | . . . . . . . . . . . . . Walls Destroyed . | . . . . . . . . . . . . . Machines Disabled . | . . . . . . . . . . . . . Actions | -11 -10 -9 -8 -8 -7 -7 -6 -6 -6 -6 -6 -6 --------- Run | Yrd Mat Mat Mat Gar Fac Gar Fac Was Fac Gar Fac Gar Total 8387 | 60 973 409 45 1353 232 1652 1413 149 312 1177 331 281 Wait 935 | 1 98 65 . 53 6 84 447 35 24 98 12 12 Move 6129 | 45 810 287 41 1091 201 1204 780 101 266 888 255 160 Hop . | . . . . . . . . . . . . . Pick Up 132 | 4 11 12 1 26 5 33 11 4 1 13 6 5 Fast Attach 56 | 7 4 3 1 9 1 14 4 2 . 4 1 6 Attach 65 | . . 3 1 12 2 17 8 2 1 3 1 15 Detach 13 | . . . . 1 . 4 1 2 . 2 . 3 Swap 177 | . 7 5 1 31 5 41 28 . 4 31 12 12 Drop 116 | . 8 10 . 21 4 33 10 3 . 13 7 7 Fire 564 | 3 35 21 . 70 8 134 96 . 16 88 32 61 Melee 118 | . . 3 . 23 . 54 28 . . 5 5 . Ram . | . . . . . . . . . . . . . Kick . | . . . . . . . . . . . . . Crush . | . . . . . . . . . . . . . Escape Stasis 82 | . . . . 16 . 34 . . . 32 . . Rewire . | . . . . . . . . . . . . . Trap . | . . . . . . . . . . . . . Miscellaneous . | . . . . . . . . . . . . . Route ------- -11/Scrapyard -10/Materials (discovered 5 exits: *Mat x3 / [*Min] / [*Sub]) -9/Materials -8/Materials -8/Garrison (discovered 2 exits: *Fac x2) -7/Factory (discovered 2 exits: [*Sto] / Gar) -7/Garrison (discovered 3 exits: *Fac x3) -6/Factory -6/Waste -6/Factory -6/Garrison (discovered 3 exits: *Fac x3) -6/Factory -6/Garrison History --------- Turn | Location | Event 25 | -11/Scrapyard | Discovered new exit (range 15) 66 | -11/Scrapyard | Entered Materials 315 | -10/Materials | Build established: Mutant 396 | -10/Materials | Discovered new exit (range 15) 667 | -10/Materials | Discovered new exit (range 12) 883 | -10/Materials | Discovered new exit (range 6) 1058 | -10/Materials | Repaired Med. Laser 1091 | -10/Materials | Discovered new exit (range 8) 1103 | -10/Materials | Identified exit to Materials 1147 | -10/Materials | Entered another Materials area 1147 | -9/Materials | Accompanied by 1 ally 1147 | -9/Materials | Evolved 2 slots: Utility x2 1544 | -9/Materials | Discovered new exit (range 12) 1586 | -9/Materials | Build established: Scavenger-Mutant 1657 | -9/Materials | Entered another Materials area 1657 | -8/Materials | Accompanied by 1 ally 1657 | -8/Materials | Evolved 2 slots: Propulsion x1, Utility x1 1709 | -8/Materials | Identified exit to Garrison 1709 | -8/Materials | Entered Garrison 1709 | -8/Garrison | Accompanied by 1 ally 1729 | -8/Garrison | Triggered checkpoint 1763 | -8/Garrison | Garrison Relay disabled 1837 | -8/Garrison | Installed Relay Interface Framework 1947 | -8/Garrison | Triggered checkpoint 2105 | -8/Garrison | Triggered checkpoint 2138 | -8/Garrison | Garrison Relay disabled 2413 | -8/Garrison | Build established: Bothacker-Mutant 2415 | -8/Garrison | Discovered new exit (range 5) 2463 | -8/Garrison | Triggered checkpoint 2773 | -8/Garrison | Triggered checkpoint 2826 | -8/Garrison | Garrison Relay disabled 2829 | -8/Garrison | Lost 4 parts (2n2u) 2888 | -8/Garrison | Lost 4 parts (1p2n1u) 3184 | -8/Garrison | Discovered new exit (range 10) 3522 | -8/Garrison | Lost 3 parts (1n1u1w) 3718 | -8/Garrison | Garrison Relay disabled 3726 | -8/Garrison | Garrison Relay disabled 3729 | -8/Garrison | Garrison Relay disabled 4099 | -8/Garrison | Triggered checkpoint 4137 | -8/Garrison | Core integrity fell below 50% 4306 | -8/Garrison | Expanded RIF knowledge: Program Shield 4634 | -8/Garrison | Entered Factory 4634 | -7/Factory | Evolved 2 slots: Utility x2 5029 | -7/Factory | Discovered new exit (range 16) 5102 | -7/Factory | Garrison activated, responded to threat 5159 | -7/Factory | Identified exit to Garrison 5159 | -7/Factory | Entered Garrison 5159 | -7/Garrison | Accompanied by 1 ally 5181 | -7/Garrison | Triggered checkpoint 5663 | -7/Garrison | Triggered checkpoint 5665 | -7/Garrison | Garrison Relay disabled 5767 | -7/Garrison | Triggered checkpoint 5834 | -7/Garrison | Lost 4 allies 5886 | -7/Garrison | Spotted B-75 Beast 5890 | -7/Garrison | Discovered new exit (range 14) 5919 | -7/Garrison | Triggered checkpoint 5952 | -7/Garrison | Lost 5 allies 5979 | -7/Garrison | Expanded RIF knowledge: Watcher Feeds 6023 | -7/Garrison | Destroyed B-75 Beast 6047 | -7/Garrison | Lost 4 parts (1n1u2w) 6437 | -7/Garrison | Triggered checkpoint 6477 | -7/Garrison | Triggered checkpoint 6498 | -7/Garrison | Lost 4 parts (1n2u1w) 6536 | -7/Garrison | Lost 3 allies 6758 | -7/Garrison | Spotted B-75 Beast 6761 | -7/Garrison | Spotted B-75 Beast 6941 | -7/Garrison | Discovered new exit (range 15) 7077 | -7/Garrison | Triggered checkpoint 7228 | -7/Garrison | Garrison Relay disabled 7357 | -7/Garrison | Triggered checkpoint 7479 | -7/Garrison | Discovered new exit (range 8) 7525 | -7/Garrison | Triggered checkpoint 7590 | -7/Garrison | Garrison Relay disabled 7637 | -7/Garrison | Discovered new exit (range 17) 7637 | -7/Garrison | Discovered new exit (range 57) 7637 | -7/Garrison | Discovered new exit (range 55) 7781 | -7/Garrison | Entered Factory 7781 | -6/Factory | Accompanied by 2 allies 7781 | -6/Factory | Evolved 2 slots: Propulsion x1, Utility x1 8639 | -6/Factory | Assembled infested ambush trap array 8714 | -6/Factory | Lost 3 parts (1n2u) 8813 | -6/Factory | Lost 3 allies 8891 | -6/Factory | Discovered new exit (range 24) 9487 | -6/Factory | Cargo convoy interrupted 9519 | -6/Factory | Sucked down chute 9519 | -6/Factory | Entered Waste 9520 | -6/Waste | Joined by Warlord forces that had cleared the area 9524 | -6/Waste | 1 allies followed down the chute 9580 | -6/Waste | Discovered new exit (range 64) 9687 | -6/Waste | Entered Factory 9687 | -6/Factory | Accompanied by 21 allies 9801 | -6/Factory | Lost 7 allies 9977 | -6/Factory | Garrison activated, responded to threat 10043 | -6/Factory | Identified exit to Garrison 10064 | -6/Factory | Entered Garrison 10064 | -6/Garrison | Accompanied by 16 allies 10124 | -6/Garrison | Triggered checkpoint 10158 | -6/Garrison | Garrison Relay disabled 10161 | -6/Garrison | Garrison Relay disabled 10169 | -6/Garrison | Lost 3 allies 10178 | -6/Garrison | P-60 Hacker assimilated allied 5H-K3L(g) 10281 | -6/Garrison | Garrison Relay disabled 10382 | -6/Garrison | Triggered checkpoint 10388 | -6/Garrison | Triggered checkpoint 10536 | -6/Garrison | Triggered checkpoint 10545 | -6/Garrison | P-60 Hacker assimilated allied LN-2XP(g) 10561 | -6/Garrison | Discovered new exit (range 11) 10707 | -6/Garrison | Expanded RIF knowledge: Signal Jamming 10781 | -6/Garrison | Garrison Relay disabled 10888 | -6/Garrison | Triggered checkpoint 10942 | -6/Garrison | Triggered checkpoint 10965 | -6/Garrison | Garrison Relay disabled 10992 | -6/Garrison | Discovered new exit (range 11) 11005 | -6/Garrison | Build established: Botlord-Mutant 11005 | -6/Garrison | Identified exit to Factory 11136 | -6/Garrison | Triggered checkpoint 11251 | -6/Garrison | Discovered exit to Factory (range 13) 11298 | -6/Garrison | Triggered checkpoint 11336 | -6/Garrison | Garrison Relay disabled 11578 | -6/Garrison | Entered Factory 11578 | -6/Factory | Accompanied by 11 allies 11928 | -6/Factory | First assault squad dispatched 11944 | -6/Factory | Garrison activated, responded to threat 11993 | -6/Factory | Identified exit to Garrison 11996 | -6/Factory | Entered Garrison 11996 | -6/Garrison | Accompanied by 10 allies 12012 | -6/Garrison | Spotted B-75 Beast 12029 | -6/Garrison | Destroyed B-75 Beast 12076 | -6/Garrison | Lost 7 allies 12165 | -6/Garrison | Found Fusion Bomb Launcher 12234 | -6/Garrison | Triggered checkpoint 12239 | -6/Garrison | Triggered checkpoint 12244 | -6/Garrison | Triggered checkpoint 12261 | -6/Garrison | Triggered checkpoint 12300 | -6/Garrison | Core integrity fell below 50% 12314 | -6/Garrison | Destroyed 9 combat bots 12378 | -6/Garrison | Lost 14 parts (1p6n4u3w) 12426 | -6/Garrison | Core integrity fell below 20% 12444 | -6/Garrison | Triggered checkpoint 12446 | -6/Garrison | Destroyed by G-50 Soldier with Heavy Laser Last Messages --------------- 12349_ Critical hit (Burn: +17). 12364_ System corrupted: Matter fused (-3). 12380_ System corrupted: Component data lost. 12389_ Acquired 46 matter. 12391_ Acquired 56 matter. 12399_ VTOL Module melted. 12399_ S-27 Virus destroyed. 12406_ System corrupted: Heat flow error (+105). 12415_ Med. Reflective Plating destroyed. 12419_ Adv. Force Field destroyed. 12423_ System corrupted: Energy discharge (-41). 12423_ Particle Reactor destroyed. 12427_ Backup Laser III destroyed. 12430_ Fusion Bomb Launcher destroyed. 12436_ Acquired Hvy. Laser. 12437_ Backup Laser III destroyed. 12440_ Critical hit (Burn: +37). 12442_ Hvy. Laser destroyed. 12444_ Beams of light sweep through the air. An alarm sounds. 12444_ Acquired 41 matter. Map ----- +----------------------------------------------------+ | ????????????????????????????????????# # # ?? | | ???????????????????????????????????? ! ? | | ???????????????????????????????????# !%[? | | ???????????????????????????????????# = | | ???????????????????????????????????#!%= # | | ?????????????????????????????????### *^ % % | | ?????????????????????????????????# % | | ?????????????????????????????????# * | | ?????????????????????????????????# *%% | | ?????????????????????????????????? | | ????????????????????????????????#### % # | | ??????????????????????????####### # # | | ??????????????????????????# | | ??????????????????????????# | | ??????????????????????????# ### # % | | ??????????????????????????# #?### ## # # | | ??????????????????????????# #???### ## #???? | | ??????????????????????????# ###### ##?####???? | | ??????????????????????????# + #?????????? | | ??????????????????????????# ####### #?????????? | | ??????????????????????????# #?????? #?????????? | | ??????????????????????????# [#?????# #?????????? | | ???########################%+##### ##????????? | | ???# %== =gg= #????????? | | ???# % % [! !%!! g #????????? | | ???# %%[%! @ =%! #????????? | | ???# ###########;=####### ###### ##????????? | | ???# #?????????# #?????# #???????###?????????? | | ???#####???????### ###???# ??????????????????? | | ?????????????### # # ###?# #?????????????????? | | ?????????????#"" # # ""#?# #?????????????????? | | ?????????????#"* # #^]"#?# ###?????????????????? | | ?????????????#"*^# # ="#?# #???????????????????? | | ?????????????#" # # ]"#?# #???????????????????? | | ?????????????#" # #[ "#?# #???????????????????? | | ?????????????#" # #[="#?# #???????????????????? | | ?????????????#" # #!^"#?# ???????????????????? | | ?????????????#"" ^ [""#?# ???????????????????? | | ?????????????#"""=]! """#?# ???????????????????? | | ?????????????#""""""""""#?? #???????????????????? | | ?????????????############?? ????????????????????? | | ???????????????????????????##????????????????????? | | ?????????????????????????????????????????????????? | | ?????????????????????????????????????????????????? | | ?????????????????????????????????????????????????? | | ?????????????????????????????????????????????????? | | ?????????????????????????????????????????????????? | | ?????????????????????????????????????????????????? | | ?????????????????????????????????????????????????? | | ?????????????????????????????????????????????????? | +----------------------------------------------------+ Best States ------------- Heat Dissipation 70 Energy Generation 23 Energy Capacity 840 Matter Stores 300 Matter Capacity 300 Sight Range 16 Robot Scan Range 16 Terrain Scan Range 16 Terrain Scan Density 10 ECM Strength 1 Corruption Containment 12 Armor Coverage 600 Resistance: TH 15 Phase Shifting 5 Evasion (%) 45 Targeting Accuracy 5 Recoil Reduction 3 Offensive Hacking 10 Defensive Hacking 12 Relay Coupler Types 5 Relay Coupler Value 175 Authchip Count 1 Item Schematics ----------------- None Robot Schematics ------------------ None Fabricated ------------ Nothing Alien Tech Used ----------------- None Achievements -------------- None Challenges ------------ None Game ------ Seed ExpertImprovedFlightbrick Manual? 0 Play Time 03:41:41 Cumulative 136.7 hours Start 2024.11.08 @ 20:37:41 End 2024.11.09 @ 00:42:27 Sessions 1 Manual Loads 0 Difficulty Rogue Special Mode None Game No. 41 Rogue 41 Adventurer 0 Explorer 0 Win Type - Total 0 Types 0/0/0/0/0/0/0/0/0 Lore% 18 Gallery% 45 Achievement% 38 Wizard Run 0 Options --------- Layout 0 ASCII 0 Keyboard 0 Movement Mouse Keybinds 0 Fullscreen 1 Font 36/Smallcaps Map View 76x50 Zoom Use 0% Tactical HUD 1 Map Filters NONE Filters NONE Steam X RUN: 1ff0d544-da4b-42eb-b74b-0e463a6cb474